bitfinex/quotes_SOLUSD_20240818
["timestamp","ask_amount","ask_price","bid_price","bid_amount"]
[1724008512496,45.0,146.0,145.92,8.84]
[1724008512680,7.53789748,145.99,145.92,8.84]
[1724008512886,7.53789748,145.98,145.92,8.84]
[1724008513084,45.0,146.0,145.92,8.84]
[1724008513285,7.53790202,145.99,145.92,8.84]
[1724008513491,7.53790202,145.98,145.92,8.84]
[1724008513707,7.53790202,145.98,145.9,6.0286]
[1724008513708,52.53795102,145.97,145.9,6.0286]
[1724008513914,6.8525,145.94,145.87,15.0946]
[1724008514205,62.04450439,145.93,145.87,15.0946]
[1724008514389,8.20450439,145.92,145.87,15.0946]
[1724008515011,7.53795102,145.91,145.87,15.0946]
[1724008515212,8.20450439,145.9,145.84,15.0946]
[1724008515388,8.20450439,145.9,145.62,3.06801907]
[1724008515389,91.38176043,145.89,145.82,6.0176]
[1724008515717,53.2083138,145.88,145.8,15.0946]
[1724008516008,7.54176043,145.87,145.8,15.0946]
[1724008516209,8.2083138,145.86,145.8,15.0946]
[1724008516392,30.66655337,145.85,145.8,15.0946]
[1724008516891,30.0,145.85,145.81,8.84]
[1724008519610,30.0,145.85,145.8,15.0946]
[1724008519913,30.0,145.85,145.81,8.84]
[1724008520518,0.66655337,145.84,145.8,15.0946]
[1724008520810,30.0,145.83,145.8,15.0946]
[1724008522085,30.0,145.83,145.8,23.9346]
[1724008522284,30.0,145.83,145.82,8.84]
[1724008523296,30.0,145.83,145.79,8.84]
[1724008523910,30.0,145.83,145.78,6.0176]
[1724008524111,30.0,145.83,145.81,8.84]
[1724008526615,45.0,145.88,145.81,8.84]
[1724008526815,45.0,145.89,145.81,8.84]
[1724008527396,45.66655337,145.89,145.81,8.84]
[1724008528325,61.36115337,145.89,145.79,8.84]
[1724008529807,53.84,145.89,145.81,8.84]
[1724008530633,54.50655337,145.89,145.81,8.84]
[1724008531826,53.84,145.89,145.81,8.84]
[1724008534418,54.50655337,145.89,145.81,8.84]
[1724008534724,53.84,145.89,145.81,8.84]
[1724008535736,54.50655337,145.89,145.81,8.84]
[1724008536038,53.84,145.89,145.81,8.84]
[1724008536415,54.50655337,145.89,145.81,8.84]
[1724008536618,53.84,145.89,145.81,8.84]
[1724008537005,45.0,145.89,145.81,8.84]
[1724008537402,0.66655337,145.88,145.81,8.84]
[1724008537828,45.0,145.89,145.81,8.84]
[1724008538036,45.66655337,145.89,145.81,8.84]
[1724008539129,8.84,145.85,145.78,6.0176]
[1724008539336,0.66655337,145.84,145.76,15.5108]
[1724008539636,45.66655337,145.84,145.76,15.5108]
[1724008540738,8.84,145.83,145.75,6.4619]
[1724008540924,45.0,145.82,145.72,15.5533]
[1724008541122,45.66655337,145.82,145.73,8.84]
[1724008541617,45.0,145.82,145.73,8.84]
[1724008541936,45.0,145.82,145.75,8.84]
[1724008542136,30.66655337,145.81,145.73,8.84]
[1724008542335,45.0,145.8,145.73,8.84]
[1724008542840,45.0,145.8,145.72,24.3933]
[1724008546238,45.0,145.81,145.72,24.3933]
[1724008546836,51.88235337,145.81,145.72,15.5533]
[1724008547141,51.88235337,145.81,145.72,24.3933]
[1724008547718,51.2158,145.81,145.72,24.3933]
[1724008548135,30.0,145.79,145.72,24.3933]
[1724008551750,51.2158,145.81,145.72,24.3933]
[1724008553932,16.2697,145.83,145.74,8.84]
[1724008554136,6.2158,145.85,145.78,8.84]
[1724008554341,22.0876,145.87,145.8,8.84]
[1724008555224,22.75415337,145.87,145.8,8.84]
[1724008555552,15.2318,145.87,145.8,8.84]
[1724008556245,15.2318,145.87,145.82,8.84]
[1724008557728,15.2318,145.87,145.8,8.84]
[1724008561451,7.54485936,145.86,145.8,8.84]
[1724008561766,15.2318,145.87,145.8,8.84]
[1724008561963,7.54486163,145.86,145.8,8.84]
[1724008562148,15.2318,145.87,145.8,8.84]
[1724008562342,7.54485936,145.86,145.8,8.84]
[1724008562649,15.2318,145.87,145.8,8.84]
[1724008562862,7.54481253,145.86,145.8,8.84]
[1724008563089,15.2318,145.87,145.8,8.84]
[1724008563249,7.54481026,145.86,145.8,8.84]
[1724008563563,15.2318,145.87,145.8,8.84]
[1724008563744,7.54485936,145.86,145.8,8.84]
[1724008563943,15.2318,145.87,145.8,8.84]
[1724008564153,7.54487177,145.86,145.8,8.84]
[1724008564373,15.2318,145.87,145.8,8.84]
[1724008564556,7.5448695,145.86,145.8,8.84]
[1724008564867,0.66655337,145.85,145.8,8.84]
[1724008565368,15.2318,145.87,145.8,8.84]
[1724008565576,7.54481913,145.86,145.8,8.84]
[1724008565738,15.2318,145.87,145.8,8.84]
[1724008565938,7.54485936,145.86,145.8,8.84]
[1724008566141,15.2318,145.87,145.8,8.84]
[1724008566365,7.54485936,145.86,145.8,8.84]
[1724008566668,15.2318,145.87,145.8,8.84]
[1724008566874,7.54486712,145.86,145.8,8.84]
[1724008567088,15.2318,145.87,145.8,8.84]
[1724008567259,7.54486485,145.86,145.8,8.84]
[1724008567439,15.2318,145.87,145.8,8.84]
[1724008567645,7.54491073,145.86,145.8,8.84]
[1724008567846,15.2318,145.87,145.8,8.84]
[1724008568082,13.0702,145.89,145.8,8.84]
[1724008568371,52.54429984,145.88,145.8,8.84]
[1724008568570,7.54429984,145.87,145.8,8.84]
[1724008568878,45.0,145.88,145.8,8.84]
[1724008569050,7.54425529,145.87,145.8,8.84]
[1724008569348,45.0,145.88,145.8,8.84]
[1724008569549,45.0,145.88,145.82,8.84]
[1724008569851,45.0,145.89,145.82,8.84]
[1724008570455,7.54383759,145.88,145.82,8.84]
[1724008570666,45.0,145.89,145.82,8.84]
[1724008570857,7.54383986,145.88,145.82,8.84]
[1724008571057,45.0,145.89,145.82,8.84]
[1724008571284,7.54386515,145.88,145.82,8.84]
[1724008571466,45.0,145.89,145.82,8.84]
[1724008571664,7.54388163,145.88,145.82,8.84]
[1724008571876,45.0,145.89,145.82,8.84]
[1724008572074,7.54388163,145.88,145.82,8.84]
[1724008572366,45.0,145.89,145.82,8.84]
[1724008572576,7.54378347,145.88,145.82,8.84]
[1724008572747,45.0,145.89,145.82,8.84]
[1724008572949,7.54378347,145.88,145.82,8.84]
[1724008573286,45.0,145.89,145.82,8.84]
[1724008573471,7.54378574,145.88,145.82,8.84]
[1724008573673,52.15369684,145.89,145.82,8.84]
[1724008573853,7.54383255,145.88,145.82,8.84]
[1724008574049,52.15369684,145.89,145.82,8.84]
[1724008574255,7.54383255,145.88,145.82,8.84]
[1724008574470,52.82025021,145.89,145.82,8.84]
[1724008574668,0.66655337,145.87,145.8,8.84]
[1724008574881,45.66655337,145.87,145.8,8.84]
[1724008575071,0.66655337,145.87,145.8,8.84]
[1724008575593,7.54488952,145.86,145.8,8.84]
[1724008575765,0.66655337,145.85,145.8,8.84]
[1724008576166,9.50655337,145.88,145.8,8.84]
[1724008576364,52.54485975,145.87,145.8,8.84]
[1724008576565,45.0,145.87,145.8,8.84]
[1724008577358,7.5446954,145.86,145.8,8.84]
[1724008577564,45.0,145.87,145.8,8.84]
[1724008577786,7.5447445,145.86,145.8,8.84]
[1724008577992,45.0,145.87,145.8,8.84]
[1724008578289,7.5447445,145.86,145.8,8.84]
[1724008578584,45.0,145.87,145.8,8.84]
[1724008578761,7.54479394,145.86,145.8,8.84]
[1724008578963,45.0,145.87,145.8,8.84]
[1724008579179,7.54479394,145.86,145.8,8.84]
[1724008579488,45.0,145.87,145.8,8.84]
[1724008579866,7.54474485,145.86,145.8,8.84]
[1724008580072,45.0,145.87,145.8,8.84]
[1724008580267,7.54474485,145.86,145.8,8.84]
[1724008580483,45.0,145.87,145.8,8.84]
[1724008580657,7.54474485,145.86,145.8,8.84]
[1724008580869,45.0,145.88,145.8,8.84]
[1724008581075,7.54474257,145.87,145.8,8.84]
[1724008581368,7.54474257,145.86,145.8,8.84]
[1724008581561,45.0,145.88,145.8,8.84]
[1724008581764,7.54472982,145.87,145.8,8.84]
[1724008581973,45.0,145.88,145.8,8.84]
[1724008582160,7.54467845,145.87,145.8,8.84]
[1724008582361,45.0,145.88,145.8,8.84]
[1724008582694,7.54467845,145.87,145.8,8.84]
[1724008582858,7.54472754,145.86,145.8,8.84]
[1724008583054,0.66655337,145.85,145.8,8.84]
[1724008583481,0.66655337,145.85,145.78,25.171]
[1724008584064,45.66655337,145.85,145.78,25.171]
[1724008588141,0.66655337,145.84,145.78,25.171]
[1724008588904,45.0,145.85,145.78,25.171]
[1724008589206,0.66655337,145.84,145.78,25.171]
[1724008589890,45.0,145.85,145.78,25.171]
[1724008590299,45.0,145.85,145.8,8.84]
[1724008590502,45.0,145.86,145.8,8.84]
[1724008590794,7.54525861,145.85,145.8,8.84]
[1724008591003,6.8551,145.88,145.8,8.84]
[1724008591210,52.5452189,145.87,145.8,8.84]
[1724008591500,7.5452189,145.86,145.8,10.21153073]
[1724008591815,7.5452189,145.85,145.8,10.21153073]
[1724008592122,45.0,145.87,145.8,10.21153073]
[1724008592309,7.54517207,145.86,145.8,10.21153073]
[1724008592485,45.0,145.87,145.8,8.84]
[1724008592486,7.54517207,145.85,145.8,8.84]
[1724008592684,45.0,145.87,145.8,8.84]
[1724008592886,7.54517662,145.86,145.8,8.84]
[1724008593107,7.54517662,145.85,145.8,8.84]
[1724008593302,45.0,145.87,145.8,8.84]
[1724008593611,7.54517662,145.86,145.8,8.84]
[1724008593912,7.54517662,145.85,145.8,8.84]
[1724008594084,45.0,145.87,145.8,8.84]
[1724008594409,7.54517207,145.86,145.8,8.84]
[1724008594595,45.0,145.87,145.8,8.84]
[1724008594596,7.54517207,145.85,145.8,8.84]
[1724008594787,7.54517207,145.84,145.8,8.84]
[1724008594991,45.0,145.87,145.8,8.84]
[1724008595204,7.54517889,145.86,145.8,8.84]
[1724008595499,7.54517889,145.85,145.8,8.84]
[1724008595703,7.54517889,145.84,145.8,8.84]
[1724008595909,45.0,145.87,145.8,8.84]
[1724008596215,7.54517207,145.86,145.8,8.84]
[1724008596390,7.54517207,145.85,145.8,8.84]
[1724008596591,7.54517207,145.84,145.8,8.84]
[1724008596788,7.15990551,145.88,145.8,8.84]
[1724008596989,7.15990551,145.88,145.78,16.331]
[1724008596990,7.54503244,145.87,145.82,8.84]
[1724008597192,7.54503244,145.86,145.82,8.84]
[1724008597402,29.29066314,145.9,145.82,8.84]
[1724008597621,7.54367921,145.89,145.82,8.84]
[1724008597929,7.54367921,145.88,145.82,8.84]
[1724008598092,7.54367921,145.87,145.82,8.84]
[1724008598293,7.54367921,145.86,145.82,8.84]
[1724008598501,29.29066314,145.9,145.82,8.84]
[1724008598713,52.54378274,145.89,145.82,8.84]
[1724008598928,7.54378274,145.88,145.82,8.84]
[1724008599096,7.54378274,145.87,145.82,8.84]
[1724008599295,7.54378274,145.86,145.82,8.84]
[1724008599504,7.54378274,145.85,145.82,8.84]
[1724008599799,61.36105337,145.89,145.81,6.3357]
[1724008600324,7.54420368,145.88,145.81,6.3357]
[1724008600490,8.21075705,145.87,145.81,6.3357]
[1724008600693,7.54444786,145.86,145.81,6.3357]
[1724008600918,8.21100123,145.85,145.81,6.3357]
[1724008601220,7.54444786,145.84,145.81,6.3357]
[1724008601406,0.66655337,145.88,145.81,6.3357]
[1724008601719,7.54429831,145.87,145.81,6.3357]
[1724008601923,7.54429831,145.86,145.81,6.3357]
[1724008602118,7.54429831,145.85,145.81,6.3357]
[1724008602312,7.54429831,145.84,145.81,6.3357]
[1724008602617,61.36105337,145.89,145.81,6.3357]
[1724008602796,8.84,145.87,145.78,25.171]
[1724008602988,53.2108985,145.86,145.78,25.171]
[1724008603192,8.2108985,145.85,145.78,25.171]
[1724008603416,7.54434513,145.84,145.78,25.171]
[1724008603623,7.54434513,145.83,145.78,25.171]
[1724008603822,7.54434513,145.82,145.78,25.171]
[1724008604027,0.66655337,145.85,145.78,25.171]
[1724008604335,7.54530458,145.84,145.78,25.171]
[1724008604828,45.0,145.86,145.8,8.84]
[1724008604829,7.54530458,145.83,145.8,8.84]
[1724008605044,26.02613541,145.9,145.82,8.84]
[1724008605333,26.02613541,145.9,145.84,8.84]
[1724008605334,7.54358898,145.89,145.84,8.84]
[1724008605530,7.54358898,145.88,145.83,15.9273]
[1724008605825,7.54358898,145.87,145.83,15.9273]
[1724008606027,7.54358898,145.86,145.83,15.9273]
[1724008606225,7.16046314,145.9,145.83,15.9273]
[1724008606425,7.54332938,145.89,145.83,15.9273]
[1724008606620,7.54332938,145.88,145.83,15.9273]
[1724008606927,7.54332938,145.87,145.83,15.9273]
[1724008607145,7.54332938,145.86,145.83,15.9273]
[1724008607318,7.16046314,145.9,145.83,15.9273]
[1724008607524,52.54323922,145.89,145.83,15.9273]
[1724008607719,7.54323922,145.88,145.83,15.9273]
[1724008607933,7.54323922,145.87,145.83,15.9273]
[1724008608130,7.54323922,145.86,145.83,15.9273]
[1724008608425,45.0,145.89,145.83,15.9273]
[1724008608735,7.54324149,145.88,145.83,15.9273]
[1724008608937,7.54324149,145.87,145.83,15.9273]
[1724008609109,7.54324149,145.86,145.83,15.9273]
[1724008609309,45.0,145.89,145.83,15.9273]
[1724008609510,7.54319264,145.88,145.83,15.9273]
[1724008609731,7.54319264,145.87,145.83,15.9273]
[1724008609933,7.54319264,145.86,145.83,15.9273]
[1724008610120,45.0,145.89,145.83,15.9273]
[1724008610318,7.54324853,145.88,145.83,15.9273]
[1724008610629,7.54324853,145.87,145.83,15.9273]
[1724008610825,7.54324853,145.86,145.83,15.9273]
[1724008611028,45.0,145.89,145.83,15.9273]
[1724008611226,7.54319264,145.88,145.84,8.84]
[1724008611438,7.54319264,145.87,145.84,8.84]
[1724008611629,45.0,145.89,145.84,8.84]
[1724008611833,7.54319037,145.88,145.84,8.84]
[1724008612015,7.54319037,145.87,145.84,8.84]
[1724008612215,7.54319037,145.86,145.84,8.84]
[1724008612451,7.16046314,145.9,145.84,8.84]
[1724008612734,7.54324626,145.89,145.84,8.84]
[1724008612917,7.16046314,145.9,145.84,8.84]
[1724008612918,7.54323945,145.88,145.84,8.84]
[1724008613540,7.54323945,145.87,145.84,8.84]
[1724008613835,7.16046314,145.9,145.84,8.84]
[1724008614010,7.54324399,145.89,145.84,8.84]
[1724008614207,7.54324399,145.88,145.84,8.84]
[1724008614410,7.54324399,145.87,145.84,8.84]
[1724008614615,7.16046314,145.9,145.84,8.84]
[1724008614819,7.5426253,145.89,145.84,8.84]
[1724008615022,7.5426253,145.88,145.84,8.84]
[1724008615221,7.16046314,145.9,145.84,8.84]
[1724008615222,7.5426253,145.87,145.84,8.84]
[1724008615420,7.16046314,145.9,145.84,8.84]
[1724008615631,7.5431276,145.89,145.84,8.84]
[1724008615837,7.5431276,145.88,145.84,8.84]
[1724008616050,7.5431276,145.87,145.84,8.84]
[1724008616241,7.16046314,145.9,145.84,8.84]
[1724008616629,8.20983136,145.89,145.84,8.84]
[1724008617031,7.54327799,145.88,145.84,8.84]
[1724008617229,7.54327799,145.87,145.84,8.84]
[1724008617435,7.16046314,145.9,145.84,8.84]
[1724008617744,7.54329333,145.89,145.84,8.84]
[1724008617931,7.54329333,145.88,145.84,8.84]
[1724008618128,7.54329333,145.87,145.84,8.84]
[1724008618426,7.16046314,145.9,145.84,8.84]
[1724008618631,7.54323745,145.89,145.84,8.84]
[1724008618833,7.54323745,145.88,145.84,8.84]
[1724008619034,7.54323745,145.87,145.84,8.84]
[1724008619235,7.16046314,145.9,145.84,8.84]
[1724008619437,7.54323745,145.89,145.84,8.84]
[1724008619724,7.54323745,145.88,145.84,8.84]
[1724008619926,7.54323745,145.87,145.84,8.84]
[1724008620125,7.16046314,145.9,145.84,8.84]
[1724008620338,7.54324426,145.89,145.84,8.84]
[1724008620642,22.9949,145.94,145.86,8.84]
[1724008620847,14.70712572,145.93,145.86,8.84]
[1724008621145,7.54175639,145.92,145.86,8.84]
[1724008621344,7.54175639,145.91,145.86,8.84]
[1724008621547,7.54175639,145.9,145.86,8.84]
[1724008621725,7.16536933,145.93,145.86,8.84]
[1724008621926,52.54159235,145.92,145.86,8.84]
[1724008622127,7.54159235,145.91,145.86,8.84]
[1724008622429,45.0,145.92,145.86,8.84]
[1724008622750,7.54158781,145.91,145.84,8.84]
[1724008622933,53.20814118,145.9,145.84,8.84]
[1724008623269,45.0,145.92,145.84,8.84]
[1724008623270,0.66655337,145.91,145.84,8.84]
[1724008623543,7.54294646,145.9,145.84,8.84]
[1724008623845,7.54294646,145.89,145.84,8.84]
[1724008624152,0.66655337,145.91,145.84,8.84]
[1724008624153,7.54294646,145.88,145.84,8.84]
[1724008624324,0.66655337,145.91,145.84,8.84]
[1724008624521,7.54294646,145.9,145.84,8.84]
[1724008624833,7.54294646,145.89,145.84,8.84]
[1724008625038,7.54293412,145.88,145.84,8.84]
[1724008625239,51.8532,145.92,145.84,8.84]
[1724008625547,7.54273102,145.91,145.84,8.84]
[1724008625751,52.54273102,145.9,145.84,8.84]
[1724008625927,7.54273102,145.89,145.84,8.84]
[1724008626128,45.0,145.9,145.84,8.84]
[1724008626328,6.8532,145.92,145.84,8.84]
[1724008626329,7.54264555,145.89,145.84,8.84]
[1724008626648,45.0,145.91,145.84,8.84]
[1724008626853,7.54264328,145.9,145.84,8.84]
[1724008627051,7.54264328,145.89,145.84,8.84]
[1724008627350,45.0,145.91,145.84,8.84]
[1724008627560,45.0,145.92,145.84,8.84]
[1724008627928,7.54264242,145.91,145.84,8.84]
[1724008628129,7.54264242,145.9,145.84,8.84]
[1724008628626,45.0,145.92,145.84,8.84]
[1724008628627,7.54264242,145.89,145.84,8.84]
[1724008628846,45.0,145.92,145.84,8.84]
[1724008629049,7.54269602,145.91,145.84,8.84]
[1724008629246,7.54269602,145.9,145.84,8.84]
[1724008629548,7.54269602,145.89,145.84,8.84]
[1724008629753,45.0,145.92,145.84,8.84]
[1724008629927,7.54264014,145.91,145.84,8.84]
[1724008630128,7.54264014,145.9,145.84,8.84]
[1724008630338,7.54264014,145.89,145.84,8.84]
[1724008630542,0.66655337,145.88,145.83,15.9273]
[1724008630731,0.66655337,145.91,145.83,15.9273]
[1724008630945,16.38297284,145.9,145.83,15.9273]
[1724008631134,59.70407144,145.89,145.82,6.3357]
[1724008631343,8.20952621,145.88,145.8,23.9339]
[1724008631534,52.54297284,145.87,145.8,23.9339]
[1724008631731,7.5440728,145.86,145.8,23.9339]
[1724008631929,0.66655337,145.88,145.8,23.9339]
[1724008632156,7.54418105,145.87,145.8,23.9339]
[1724008632328,7.54418105,145.86,145.8,23.9339]
[1724008632655,0.66655337,145.88,145.8,23.9339]
[1724008632846,7.54418992,145.87,145.8,23.9339]
[1724008633058,7.54418992,145.86,145.8,23.9339]
[1724008633235,0.66655337,145.88,145.8,23.9339]
[1724008633454,7.54418538,145.87,145.8,15.0939]
[1724008633656,52.54418538,145.86,145.8,15.0939]
[1724008633875,8.21073875,145.85,145.8,15.0939]
[1724008634181,7.54418538,145.84,145.8,15.0939]
[1724008634484,0.66655337,145.83,145.8,15.0939]
[1724008634852,0.66655337,145.85,145.8,15.0939]
[1724008635172,7.54492806,145.84,145.8,15.0939]
[1724008635355,0.66655337,145.83,145.8,15.0939]
[1724008635557,0.66655337,145.85,145.8,15.0939]
[1724008635757,7.54492352,145.84,145.8,15.0939]
[1724008635960,0.66655337,145.85,145.8,15.0939]
[1724008636173,7.54502172,145.84,145.8,15.0939]
[1724008636376,0.66655337,145.85,145.8,15.0939]
[1724008636590,7.5451199,145.84,145.8,15.0939]
[1724008636890,0.66655337,145.85,145.8,15.0939]
[1724008637205,7.54512217,145.84,145.8,15.0939]
[1724008637353,0.66655337,145.83,145.8,15.0939]
[1724008637553,0.66655337,145.85,145.8,15.0939]
[1724008637776,7.5450217,145.84,145.8,15.0939]
[1724008637978,0.66655337,145.85,145.8,15.0939]
[1724008638173,7.5447762,145.84,145.8,15.0939]
[1724008638483,0.66655337,145.83,145.8,15.0939]
[1724008638781,0.66655337,145.85,145.8,15.0939]
[1724008638993,7.54522259,145.84,145.8,15.0939]
[1724008639289,0.66655337,145.83,145.8,15.0939]
[1724008639461,0.66655337,145.85,145.8,15.0939]
[1724008639665,7.54520074,145.84,145.8,15.0939]
[1724008639863,0.66655337,145.85,145.8,15.0939]
[1724008640060,7.54521804,145.84,145.8,15.0939]
[1724008640260,45.0,145.86,145.8,15.0939]
[1724008640469,7.54522031,145.85,145.81,8.84]
[1724008640674,7.54522031,145.84,145.81,8.84]
[1724008640888,45.0,145.87,145.81,8.84]
[1724008641085,7.54477786,145.86,145.81,8.84]
[1724008641290,7.54477786,145.85,145.81,8.84]
[1724008641490,7.54477786,145.84,145.81,8.84]
[1724008641672,7.1610986,145.89,145.81,8.84]
[1724008641673,14.0156986,145.89,145.81,8.84]
[1724008641998,7.54461304,145.88,145.85,8.84]
[1724008642159,6.8536,145.91,145.85,8.84]
[1724008642361,7.54275543,145.9,145.85,8.84]
[1724008642662,7.54275543,145.89,145.85,8.84]
[1724008642862,7.54275543,145.88,145.85,8.84]
[1724008643163,20.14195468,145.92,145.85,8.84]
[1724008643366,7.54284617,145.91,145.85,8.84]
[1724008643664,7.54284617,145.9,145.85,8.84]
[1724008643875,7.54284617,145.89,145.85,8.84]
[1724008644078,7.54284617,145.88,145.85,8.84]
[1724008644291,20.14195468,145.92,145.85,8.84]
[1724008644474,52.54284703,145.91,145.85,8.84]
[1724008644674,7.54284703,145.9,145.85,8.84]
[1724008644881,7.54284703,145.89,145.85,8.84]
[1724008645189,7.16655468,145.92,145.85,8.84]
[1724008645486,7.54225902,145.91,145.85,8.84]
[1724008645689,7.54225902,145.9,145.85,8.84]
[1724008645893,7.54225902,145.89,145.85,8.84]
[1724008646061,7.16655468,145.92,145.85,8.84]
[1724008646266,52.54224789,145.91,145.85,8.84]
[1724008646487,7.54224789,145.9,145.85,8.84]
[1724008646792,7.54224789,145.89,145.85,8.84]
[1724008646995,45.0,145.91,145.85,8.84]
[1724008647169,7.5422547,145.9,145.85,8.84]
[1724008647371,7.5422547,145.89,145.85,8.84]
[1724008647718,45.0,145.91,145.85,8.84]
[1724008648008,7.16655468,145.92,145.84,22.4949]
[1724008648009,7.16655468,145.92,145.89,25.382]
[1724008648188,18.80197227,145.97,145.91,8.84]
[1724008648516,6.8503,145.98,145.93,8.84]
[1724008648517,7.54014639,145.96,145.93,8.84]
[1724008648676,21.2884,146.01,145.93,8.84]
[1724008648677,24.87797227,146.01,145.93,8.84]
[1724008648877,7.53886557,146.0,145.93,8.84]
[1724008649096,28.45105727,146.01,145.93,8.84]
[1724008649097,7.53886557,145.99,145.93,8.84]
[1724008649293,7.53886557,145.98,145.93,8.84]
[1724008649513,28.45105727,146.01,145.93,8.84]
[1724008649680,7.53861937,146.0,145.93,8.84]
[1724008649883,7.53861937,145.99,145.93,8.84]
[1724008650181,7.53861937,145.98,145.95,8.84]
[1724008650408,10.43707227,146.04,145.97,8.84]
[1724008650603,7.53793898,146.03,145.97,8.84]
[1724008650906,7.53793898,146.02,145.97,8.84]
[1724008651109,7.53793898,146.01,145.97,8.84]
[1724008651405,7.53793898,146.0,145.97,8.84]
[1724008651615,14.00945957,146.04,145.97,8.84]
[1724008651784,45.0,146.03,145.97,8.84]
[1724008651994,7.53782268,146.02,145.97,8.84]
[1724008652217,45.0,146.01,145.97,8.84]
[1724008652421,7.16195957,146.04,145.97,8.84]
[1724008652586,7.53716328,146.03,145.97,8.84]
[1724008652787,7.16195957,146.04,145.96,7.78697334]
[1724008652788,7.16195957,146.04,145.99,8.84]
[1724008653100,7.53697609,146.03,145.99,8.84]
[1724008653409,7.16195957,146.04,145.99,8.84]
[1724008655500,7.16195957,146.04,146.01,8.84]
[1724008655802,0.8714604,146.06,146.01,8.84]
[1724008656186,0.8714604,146.06,146.03,8.84]
[1724008656387,0.8714604,146.06,146.05,8.84]
[1724008657899,6.8418,146.16,146.06,15.0788]
[1724008658108,13.99723141,146.16,146.09,8.84]
[1724008659113,15.1074,146.18,146.11,8.84]
[1724008659295,22.26252052,146.18,146.11,8.84]
[1724008660510,7.15512052,146.18,146.12,1.24681574]
[1724008660809,7.15512052,146.18,146.13,22.06]
[1724008660984,7.15512052,146.18,146.11,22.06]
[1724008661189,0.66655337,146.17,146.1,6.2901]
[1724008661783,7.50795337,146.17,146.1,6.2901]
[1724008661985,7.50795337,146.17,146.07,28.3501]
[1724008662313,51.8418,146.16,146.07,28.3501]
[1724008662626,0.66655337,146.15,146.07,28.3501]
[1724008663188,30.0,146.13,146.07,28.3501]
[1724008663391,0.66655337,146.12,146.07,28.3501]
[1724008663698,30.0,146.13,146.07,28.3501]
[1724008664092,30.0,146.11,146.07,28.3501]
[1724008664487,30.0,146.11,146.08,1.36886578]
[1724008665311,30.0,146.11,146.07,28.3501]
[1724008665696,30.0,146.11,146.09,22.06]
[1724008667188,30.0,146.11,146.07,28.3501]
[1724008669614,30.0,146.11,146.05,22.06]
[1724008670193,30.66655337,146.11,146.05,22.06]
[1724008670397,30.0,146.11,146.05,22.06]
[1724008670593,30.0,146.11,146.07,22.06]
[1724008674932,30.0,146.11,146.05,22.06]
[1724008675931,30.0,146.11,146.07,22.06]
[1724008679741,30.0,146.11,146.05,22.06]
[1724008680408,7.16178437,146.15,146.07,22.06]
[1724008681039,0.66655337,146.14,146.07,22.06]
[1724008681736,7.16178437,146.15,146.07,22.06]
[1724008682052,0.66655337,146.14,146.07,22.06]
[1724008682228,7.16178437,146.15,146.07,22.06]
[1724008682412,0.66655337,146.14,146.08,8.83]
[1724008682614,0.66655337,146.14,146.03,6.2901]
[1724008682814,0.66655337,146.14,146.08,8.83]
[1724008683434,7.16178437,146.15,146.08,8.83]
[1724008683637,7.16178437,146.15,146.1,8.83]
[1724008686047,15.1074,146.17,146.1,8.83]